{"text_format":"1","workbook":"xlsx","n_sheets":5,"sheets":["Info","Referenzwertegeber VS","Leistungswerte Außenbahnsteig","Leistungswerte Mittelbstg","Dropdown"],"not_rendered":{"charts":0,"images":2,"macros":1,"external_links":0,"defined_names":37,"comments":0,"pivot_tables":0},"unopened":[],"bounds":{"document_bytes":16777216,"sheet_cells":100000,"rows_first":2000,"rows_last":500,"rows_between":2000,"halvings":0,"cell_chars":16384,"cell_head_chars":4096},"cells_cut":0,"cells_raw":0,"read":"whole","date_system":"1900"}

{"sheet":"Info","index":0,"n_rows":1,"n_cols":1,"rows_kept":1,"cut":false,"hidden":false,"merged":[]}
["     Entwicklung und fachliche Betreuung durch:\n     DB Netz AG\n     Fachstelle Baubetriebstechnologie (I.NBF 52)\n\n\n     Ansprechpartner:\n     Nicholas Braun (nicholas.braun@deutschebahn.com) und \n     Sören Griese (soeren.s.griese@deutschebahn.com)\n\n\n     Leitfaden zum Referenzwertegeber:\n       (mit Doppelklick öffnen)\n\n\n\n\n\n\n"]

{"sheet":"Referenzwertegeber VS","index":1,"n_rows":45,"n_cols":19,"rows_kept":45,"cut":false,"hidden":false,"merged":[[5,4,5,5],[1,4,1,5],[42,4,42,5],[33,4,33,5],[49,4,49,5],[29,4,29,5],[32,4,32,5],[34,4,34,5],[37,4,37,5],[40,4,40,5],[22,4,22,5],[23,4,23,5],[24,4,24,5],[27,4,27,5],[28,4,28,5],[15,4,15,5],[50,4,50,5],[51,4,51,5],[52,4,52,5],[53,4,53,5],[41,4,41,5],[45,4,45,5],[46,4,46,5],[47,4,47,5],[48,4,48,5],[16,4,16,5],[19,4,19,5],[20,4,20,5],[21,4,21,5],[6,4,6,5],[12,4,12,5],[7,4,7,5],[8,4,8,5],[11,4,11,5],[1,0,3,0],[4,11,4,15],[3,11,3,15],[2,11,2,15],[1,11,1,15],[3,2,4,2],[3,1,4,1]]}
[null,null,null,null,null,null,null,null,null,null,null,null,null,null,null,null,null,"Hilfsfelder"]
["Referenzwertegeber für Sperrzeiten \n für Verkehrsstationen",null,null,null,"Bezeichnung und Angaben zum Bauvorhaben",null,null,null,"Sperrzeit",null,"Erläuterung",null,null,null,null,null,null,"Rückbau/Tage",{"$f":"+IFERROR(_xlfn.IFS(B16=Dropdown!B2,8/8,C16=Dropdown!B2,8/8,B16=Dropdown!B3,8/16,C16=Dropdown!B3,8/18,B16=Dropdown!B4,8/24,C16=Dropdown!B4,8/24),0)","v":0}]
[null,null,null,null,"Bauvorhaben/Projektnummer",null,null,"Gesamtdauer in [h]",{"$f":"IFERROR(_xlfn.IFS(OR(B9=Dropdown!Q3,C9=Dropdown!Q3),IF(OR(AND(B7<>\"\",B12<>\"\"),AND(C7<>\"\",C12<>\"\")),IF(Eingabe_Art_Mittel=Dropdown!A3,IF(I8<8,J8+J8+L8+N8+P8,8+J8+L8+N8+P8),IF(I8<8,I8+J8+K8*0.5+M8*0.8+N8*0.85+P8,8+J8+K8*0.5+M8*0.8+N8*0.85+P8)),\"Angabe fehlt!\"),OR(B9=Dropdown!Q2,C9=Dropdown!Q2),IF(OR(AND(B7<>\"\",B12<>\"\"),AND(C7<>\"\",C12<>\"\")),IF(Eingabe_Art_Mittel=Dropdown!A3,IF(I8<8,0.75*(I8+J8+L8+N8)+P8,0.75*(8+J8+L8+N8)+P8),IF(I8<8,0.75*(I8+J8+K8*0.5+M8*0.8+N8*0.85)+P8,0.75*(8+J8+K8*0.5+M8*0.8+N8*0.85)+P8)),\"Angabe fehlt!\"),AND(B9=\"\",C9=\"\"),\"Angabe fehlt!\"),\"Angabe fehlt!\")","v":"Angabe fehlt!"},{"$f":"+IF(AND(H38=Dropdown!A16,H39=\"\"),\"Begründung fehlt!\",\"\")","v":""},null,"Pflichtfeld",null,null,null,null,null,"Rückbau/Woche",{"$f":"IFERROR(+_xlfn.IFS(B17=Dropdown!C2,'Referenzwertegeber VS'!S2/5,C17=Dropdown!C2,'Referenzwertegeber VS'!S2/5,B17=Dropdown!C3,'Referenzwertegeber VS'!S2/7,C17=Dropdown!C3,'Referenzwertegeber VS'!S2/7),0)","v":0}]
[null,null,null,null,"Gleis",null,null,"Gesamtdauer in [Tagen]",{"$f":"IFERROR(_xlfn.IFS(OR(B9=Dropdown!Q3,C9=Dropdown!Q3),IF(OR(AND(B7<>\"\",B12<>\"\",B16<>\"\"),AND(C7<>\"\",C12<>\"\",C16<>\"\")),IF(Eingabe_Art_Aussen=Dropdown!A3,IF(I8<8,I9+J9+L9+N9+P9,+S2+J9+L9+N9+P9),IF(I8<8,+I9+J9+K9*0.5+M9*0.8+N9*0.85+P9,+S2+J9+K9*0.5+M9*0.8+N9*0.85+P9)),\"Angabe fehlt!\"),OR(B9=Dropdown!Q2,C9=Dropdown!Q2),IF(OR(AND(B7<>\"\",B12<>\"\"),AND(C7<>\"\",C12<>\"\")),IF(Eingabe_Art_Aussen=Dropdown!A3,IF(I8<8,0.75*(I9+J9+L9+N9)+P9,0.75*(S2+J9+L9+N9)+P9),IF(I8<8,0.75*(I9+J9+K9*0.5+M9*0.8+N9*0.85)+P9,0.75*(S2+J9+K9*0.5+M9*0.8+N9*0.85)+P9)),\"Angabe fehlt!\"),AND(B9=\"\",C9=\"\"),\"Angabe fehlt!\"),\"Angabe fehlt!\")","v":"Angabe fehlt!"},null,null,"optionales Feld, wenn keine Angabe getätigt wird, werden die Leistungswerte des Standardfalls angenommen.",null,null,null,null,null,"Rampe ontop Zeit",{"$f":"+IF(AND(C12>100,B12=\"\",S5<'Leistungswerte Mittelbstg'!B38*0.6),'Leistungswerte Mittelbstg'!B38-S5,0)","v":0}]
["   Version 2.0",null,null,null,"Bahnsteig",null,null,"Gesamtdauer in [Wochen]",{"$f":"IFERROR(_xlfn.IFS(OR(B9=Dropdown!Q3,C9=Dropdown!Q3),IF(OR(AND(B7<>\"\",B12<>\"\",B16<>\"\",B17<>\"\"),AND(C7<>\"\",C12<>\"\",C16<>\"\",C17<>\"\")),IF(Eingabe_Art_Aussen=Dropdown!A3,IF(I8<8,+I10+J10+L10+N10+P10,+S3+J10+L10+N10+P10),IF(I8<8,+I10+J10+K10*0.5+M10*0.8+N10*0.85+P10,+S3+J10+K10*0.5+M10*0.8+N10*0.85+P10)),\"Angabe fehlt!\"),OR(B9=Dropdown!Q2,C9=Dropdown!Q2),IF(OR(AND(B7<>\"\",B12<>\"\"),AND(C7<>\"\",C12<>\"\")),IF(Eingabe_Art_Aussen=Dropdown!A3,IF(I8<8,0.75*(I10+J10+L10+N10)+P10,0.75*(S3+J10+L10+N10)+P10),IF(I8<8,0.75*(I10+J10+K10*0.5+M10*0.8+N10*0.85)+P10,0.75*(S3+J10+K10*0.5+M10*0.8+N10*0.85)+P10)),\"Angabe fehlt!\"),AND(B9=\"\",C9=\"\"),\"Angabe fehlt!\"),\"Angabe fehlt!\")","v":"Angabe fehlt!"},null,null,null,null,null,null,null,null,"Gessamt ohne on Top",{"$f":"+IF(OR(AND(B7<>\"\",B12<>\"\"),AND(B7<>\"\",C12<>\"\")),IF(Eingabe_Art=Dropdown!A3,8+J8+L8+N8+32+40,8+J8+K8*0.5+M8*0.8+N8*0.85+32+40),\"Angabe fehlt!\")","v":"Angabe fehlt!"}]
[null,null,null,null,"Kommentare, falls erforderlich"]
["Art des Bahnsteiges",null,null,null,null,null,null,"Sperrzeit je Bauphase","Rückbau","Fundament + Kante","Kabeltiefbau","Entwässerung","Verfüllen","Pflastern","Beleuchtung","\"onTop\"-Sperrzeiten",null,null,"Schatten_Blattschutz"]
["Bauweise",null,null,null,null,null,null,"Gesamtdauer in [h]",{"$f":"_xlfn.IFS(OR(B9=Dropdown!Q3,C9=Dropdown!Q3),IF(OR(AND(B7<>\"\",B12<>\"\"),AND(C7<>\"\",C12<>\"\")),+_xlfn.IFS(B7=Dropdown!A2,IF(AND(B12=0,B20=\"\",OR(B21=\"\",B21=\"nein\"),OR(B23=\"\",B23=\"nein\")),\"Angabe fehlt!\",'Leistungswerte Außenbahnsteig'!T8*'Referenzwertegeber VS'!B12),'Referenzwertegeber VS'!C7=Dropdown!A3,IF(AND(C12=0,C20=\"\",OR(C21=\"\",C21=\"nein\"),OR(C23=\"\",C23=\"nein\")),\"Angabe fehlt!\",'Leistungswerte Mittelbstg'!X22*'Referenzwertegeber VS'!C12*2)),\"Angabe fehlt!\"),OR(B9=Dropdown!Q2,C9=Dropdown!Q2),0,AND(B9=\"\",C9=\"\"),\"Angabe fehlt!\")","v":"Angabe fehlt!"},{"$f":"_xlfn.IFS(AND(B9=\"\",C9=\"\"),\"Angabe fehlt!\",OR(B9=Dropdown!Q3,C9=Dropdown!Q3),IF(OR(AND(B7<>\"\",B12<>\"\"),AND(C7<>\"\",C12<>\"\")),+_xlfn.IFS(B7=Dropdown!A2,IF(AND(B12=0,B20=\"\",OR(B21=\"\",B21=\"nein\"),OR(B23=\"\",B23=\"nein\")),\"Angabe fehlt!\",'Leistungswerte Außenbahnsteig'!T9*'Referenzwertegeber VS'!B12),'Referenzwertegeber VS'!C7=Dropdown!A3,IF(AND(C12=0,C20=\"\",OR(C21=\"\",C21=\"nein\"),OR(C23=\"\",C23=\"nein\")),\"Angabe fehlt!\",'Leistungswerte Mittelbstg'!X23*'Referenzwertegeber VS'!C12*2)),\"Angabe fehlt!\"),OR(B9=Dropdown!Q2,C9=Dropdown!Q2),IF(OR(AND(B7<>\"\",B12<>\"\"),AND(C7<>\"\",C12<>\"\")),+_xlfn.IFS(B7=Dropdown!A2,IF(AND(B12=0,B20=\"\",OR(B21=\"\",B21=\"nein\"),OR(B23=\"\",B23=\"nein\")),\"Angabe fehlt!\",0.75*('Leistungswerte Außenbahnsteig'!T9*'Referenzwertegeber VS'!B12)),'Referenzwertegeber VS'!C7=Dropdown!A3,IF(AND(C12=0,C20=\"\",OR(C21=\"\",C21=\"nein\"),OR(C23=\"\",C23=\"nein\")),\"Angabe fehlt!\",0.75*('Leistungswerte Mittelbstg'!X23*'Referenzwertegeber VS'!C12*2))),\"Angabe fehlt!\"))","v":"Angabe fehlt!"},{"$f":"IF(AND(B9=\"\",C9=\"\"),\"Angabe fehlt!\",IF(OR(AND(B7<>\"\",B12<>\"\"),AND(C7<>\"\",C12<>\"\")),_xlfn.IFS(B7=Dropdown!A2,IF(AND(B12=0,B20=\"\",OR(B21=\"\",B21=\"nein\"),OR(B23=\"\",B23=\"nein\")),\"Angabe fehlt!\",'Leistungswerte Außenbahnsteig'!T10*'Referenzwertegeber VS'!B12),'Referenzwertegeber VS'!C7=Dropdown!A3,IF(AND(C12=0,C20=\"\",OR(C21=\"\",C21=\"nein\"),OR(C23=\"\",C23=\"nein\")),\"Angabe fehlt!\",'Leistungswerte Mittelbstg'!X24*'Referenzwertegeber VS'!C12)),\"Angabe fehlt!\"))","v":"Angabe fehlt!"},{"$f":"IF(AND(B9=\"\",C9=\"\"),\"Angabe fehlt!\",IF(OR(AND(B7<>\"\",B12<>\"\"),AND(C7<>\"\",C12<>\"\")),_xlfn.IFS(B7=Dropdown!A2,\"in Kabeltiefbau enthalten\",'Referenzwertegeber VS'!C7=Dropdown!A3,IF(AND(C12=0,C20=\"\",OR(C21=\"\",C21=\"nein\"),OR(C23=\"\",C23=\"nein\")),\"Angabe fehlt!\",'Leistungswerte Mittelbstg'!X25*'Referenzwertegeber VS'!C12)),\"Angabe fehlt!\"))","v":"Angabe fehlt!"},{"$f":"IF(AND(B9=\"\",C9=\"\"),\"Angabe fehlt!\",IF(OR(AND(B7<>\"\",B12<>\"\"),AND(C7<>\"\",C12<>\"\")),_xlfn.IFS(B7=Dropdown!A2,IF(AND(B12=0,B20=\"\",OR(B21=\"\",B21=\"nein\"),OR(B23=\"\",B23=\"nein\")),\"Angabe fehlt!\",'Leistungswerte Außenbahnsteig'!T11*'Referenzwertegeber VS'!B12),'Referenzwertegeber VS'!C7=Dropdown!A3,IF(AND(C12=0,C20=\"\",OR(C21=\"\",C21=\"nein\"),OR(C23=\"\",C23=\"nein\")),\"Angabe fehlt!\",'Leistungswerte Mittelbstg'!X26*'Referenzwertegeber VS'!C12)),\"Angabe fehlt!\"))","v":"Angabe fehlt!"},{"$f":"IF(AND(B9=\"\",C9=\"\"),\"Angabe fehlt!\",IF(OR(AND(B7<>\"\",B12<>\"\"),AND(C7<>\"\",C12<>\"\")),_xlfn.IFS(B7=Dropdown!A2,IF(AND(B12=0,B20=\"\",OR(B21=\"\",B21=\"nein\"),OR(B23=\"\",B23=\"nein\")),\"Angabe fehlt!\",'Leistungswerte Außenbahnsteig'!T12*'Referenzwertegeber VS'!B12),'Referenzwertegeber VS'!C7=Dropdown!A3,IF(AND(C12=0,C20=\"\",OR(C21=\"\",C21=\"nein\"),OR(C23=\"\",C23=\"nein\")),\"Angabe fehlt!\",'Leistungswerte Mittelbstg'!X27*'Referenzwertegeber VS'!C12)),\"Angabe fehlt!\"))","v":"Angabe fehlt!"},{"$f":"IF(AND(B9=\"\",C9=\"\"),\"Angabe fehlt!\",IF(OR(AND(B7<>\"\",B12<>\"\"),AND(C7<>\"\",C12<>\"\")),_xlfn.IFS(B7=Dropdown!A2,IF(AND(B12=0,B20=\"\",OR(B21=\"\",B21=\"nein\"),OR(B23=\"\",B23=\"nein\")),\"Angabe fehlt!\",'Leistungswerte Außenbahnsteig'!T13*'Referenzwertegeber VS'!B12),'Referenzwertegeber VS'!C7=Dropdown!A3,IF(AND(C12=0,C20=\"\",OR(C21=\"\",C21=\"nein\"),OR(C23=\"\",C23=\"nein\")),\"Angabe fehlt!\",'Leistungswerte Mittelbstg'!X28*'Referenzwertegeber VS'!C12)),\"Angabe fehlt!\"))","v":"Angabe fehlt!"},{"$f":"IF(AND(B9=\"\",C9=\"\"),\"Angabe fehlt!\",IF(OR(AND(B7<>\"\",B12<>\"\"),AND(C7<>\"\",C12<>\"\")),_xlfn.IFS(B7=Dropdown!A2,IF(AND(B12=0,B20=\"\",OR(B21=\"\",B21=\"nein\"),OR(B23=\"\",B23=\"nein\")),\"Angabe fehlt!\",'Leistungswerte Außenbahnsteig'!T16),'Referenzwertegeber VS'!C7=Dropdown!A3,IF(AND(C12=0,C20=\"\",OR(C21=\"\",C21=\"nein\"),OR(C23=\"\",C23=\"nein\")),\"Angabe fehlt!\",'Leistungswerte Mittelbstg'!X31)),\"Angabe fehlt!\"))","v":"Angabe fehlt!"},null,null,"ja"]
["Art des Bauvorhabens",null,null,null,null,null,null,"Gesamtdauer in [Tagen]",{"$f":"IFERROR(IF($B$7=Dropdown!$A$2,_xlfn.IFS($B$16=Dropdown!$B$2,'Referenzwertegeber VS'!I8/8,'Referenzwertegeber VS'!$B$16=Dropdown!$B$3,'Referenzwertegeber VS'!I8/16,$B$16=Dropdown!$B$4,'Referenzwertegeber VS'!I8/24),_xlfn.IFS($C$16=Dropdown!$B$2,'Referenzwertegeber VS'!I8/8,'Referenzwertegeber VS'!$C$16=Dropdown!$B$3,'Referenzwertegeber VS'!I8/16,$C$16=Dropdown!$B$4,'Referenzwertegeber VS'!I8/24)),\"Angabe fehlt!\")","v":"Angabe fehlt!"},{"$f":"+IFERROR(IF($B$7=Dropdown!$A$2,_xlfn.IFS($B$16=Dropdown!$B$2,'Referenzwertegeber VS'!J8/8,'Referenzwertegeber VS'!$B$16=Dropdown!$B$3,'Referenzwertegeber VS'!J8/16,$B$16=Dropdown!$B$4,'Referenzwertegeber VS'!J8/24),_xlfn.IFS($C$16=Dropdown!$B$2,'Referenzwertegeber VS'!J8/8,'Referenzwertegeber VS'!$C$16=Dropdown!$B$3,'Referenzwertegeber VS'!J8/16,$C$16=Dropdown!$B$4,'Referenzwertegeber VS'!J8/24)),\"Angabe fehlt!\")","v":"Angabe fehlt!"},{"$f":"+IFERROR(IF($B$7=Dropdown!$A$2,_xlfn.IFS($B$16=Dropdown!$B$2,'Referenzwertegeber VS'!K8/8,'Referenzwertegeber VS'!$B$16=Dropdown!$B$3,'Referenzwertegeber VS'!K8/16,$B$16=Dropdown!$B$4,'Referenzwertegeber VS'!K8/24),_xlfn.IFS($C$16=Dropdown!$B$2,'Referenzwertegeber VS'!K8/8,'Referenzwertegeber VS'!$C$16=Dropdown!$B$3,'Referenzwertegeber VS'!K8/16,$C$16=Dropdown!$B$4,'Referenzwertegeber VS'!K8/24)),\"Angabe fehlt!\")","v":"Angabe fehlt!"},{"$f":"+IF(L8=\"in Kabeltiefbau enthalten\",\"in Kabeltiefbau enthalten\",IFERROR(IF($B$7=Dropdown!$A$2,_xlfn.IFS($B$16=Dropdown!$B$2,'Referenzwertegeber VS'!L8/8,'Referenzwertegeber VS'!$B$16=Dropdown!$B$3,'Referenzwertegeber VS'!L8/16,$B$16=Dropdown!$B$4,'Referenzwertegeber VS'!L8/24),_xlfn.IFS($C$16=Dropdown!$B$2,'Referenzwertegeber VS'!L8/8,'Referenzwertegeber VS'!$C$16=Dropdown!$B$3,'Referenzwertegeber VS'!L8/16,$C$16=Dropdown!$B$4,'Referenzwertegeber VS'!L8/24)),\"Angabe fehlt!\"))","v":"Angabe fehlt!"},{"$f":"+IFERROR(IF($B$7=Dropdown!$A$2,_xlfn.IFS($B$16=Dropdown!$B$2,'Referenzwertegeber VS'!M8/8,'Referenzwertegeber VS'!$B$16=Dropdown!$B$3,'Referenzwertegeber VS'!M8/16,$B$16=Dropdown!$B$4,'Referenzwertegeber VS'!M8/24),_xlfn.IFS($C$16=Dropdown!$B$2,'Referenzwertegeber VS'!M8/8,'Referenzwertegeber VS'!$C$16=Dropdown!$B$3,'Referenzwertegeber VS'!M8/16,$C$16=Dropdown!$B$4,'Referenzwertegeber VS'!M8/24)),\"Angabe fehlt!\")","v":"Angabe fehlt!"},{"$f":"+IFERROR(IF($B$7=Dropdown!$A$2,_xlfn.IFS($B$16=Dropdown!$B$2,'Referenzwertegeber VS'!N8/8,'Referenzwertegeber VS'!$B$16=Dropdown!$B$3,'Referenzwertegeber VS'!N8/16,$B$16=Dropdown!$B$4,'Referenzwertegeber VS'!N8/24),_xlfn.IFS($C$16=Dropdown!$B$2,'Referenzwertegeber VS'!N8/8,'Referenzwertegeber VS'!$C$16=Dropdown!$B$3,'Referenzwertegeber VS'!N8/16,$C$16=Dropdown!$B$4,'Referenzwertegeber VS'!N8/24)),\"Angabe fehlt!\")","v":"Angabe fehlt!"},{"$f":"+IFERROR(IF($B$7=Dropdown!$A$2,_xlfn.IFS($B$16=Dropdown!$B$2,'Referenzwertegeber VS'!O8/8,'Referenzwertegeber VS'!$B$16=Dropdown!$B$3,'Referenzwertegeber VS'!O8/16,$B$16=Dropdown!$B$4,'Referenzwertegeber VS'!O8/24),_xlfn.IFS($C$16=Dropdown!$B$2,'Referenzwertegeber VS'!O8/8,'Referenzwertegeber VS'!$C$16=Dropdown!$B$3,'Referenzwertegeber VS'!O8/16,$C$16=Dropdown!$B$4,'Referenzwertegeber VS'!O8/24)),\"Angabe fehlt!\")","v":"Angabe fehlt!"},{"$f":"+IFERROR(IF($B$7=Dropdown!$A$2,_xlfn.IFS($B$16=Dropdown!$B$2,'Referenzwertegeber VS'!P8/8,'Referenzwertegeber VS'!$B$16=Dropdown!$B$3,'Referenzwertegeber VS'!P8/16,$B$16=Dropdown!$B$4,'Referenzwertegeber VS'!P8/24),_xlfn.IFS($C$16=Dropdown!$B$2,'Referenzwertegeber VS'!P8/8,'Referenzwertegeber VS'!$C$16=Dropdown!$B$3,'Referenzwertegeber VS'!P8/16,$C$16=Dropdown!$B$4,'Referenzwertegeber VS'!P8/24)),\"Angabe fehlt!\")","v":"Angabe fehlt!"}]
[null,null,null,null,null,null,null,"Gesamtdauer in [Wochen]",{"$f":"+IFERROR(IF($B$7=Dropdown!$A$2,_xlfn.IFS($B$17=Dropdown!$C$2,'Referenzwertegeber VS'!I9/5,'Referenzwertegeber VS'!$B$17=Dropdown!$C$3,'Referenzwertegeber VS'!I9/7),_xlfn.IFS($C$17=Dropdown!$C$2,'Referenzwertegeber VS'!I9/5,'Referenzwertegeber VS'!$C$17=Dropdown!$C$3,'Referenzwertegeber VS'!I9/7)),\"Angabe fehlt!\")","v":"Angabe fehlt!"},{"$f":"+IFERROR(IF($B$7=Dropdown!$A$2,_xlfn.IFS($B$17=Dropdown!$C$2,'Referenzwertegeber VS'!J9/5,'Referenzwertegeber VS'!$B$17=Dropdown!$C$3,'Referenzwertegeber VS'!J9/7),_xlfn.IFS($C$17=Dropdown!$C$2,'Referenzwertegeber VS'!J9/5,'Referenzwertegeber VS'!$C$17=Dropdown!$C$3,'Referenzwertegeber VS'!J9/7)),\"Angabe fehlt!\")","v":"Angabe fehlt!"},{"$f":"+IFERROR(IF($B$7=Dropdown!$A$2,_xlfn.IFS($B$17=Dropdown!$C$2,'Referenzwertegeber VS'!K9/5,'Referenzwertegeber VS'!$B$17=Dropdown!$C$3,'Referenzwertegeber VS'!K9/7),_xlfn.IFS($C$17=Dropdown!$C$2,'Referenzwertegeber VS'!K9/5,'Referenzwertegeber VS'!$C$17=Dropdown!$C$3,'Referenzwertegeber VS'!K9/7)),\"Angabe fehlt!\")","v":"Angabe fehlt!"},{"$f":"+IF(L8=\"in Kabeltiefbau enthalten\",\"in Kabeltiefbau enthalten\",IFERROR(IF($B$7=Dropdown!$A$2,_xlfn.IFS($B$17=Dropdown!$C$2,'Referenzwertegeber VS'!L9/5,'Referenzwertegeber VS'!$B$17=Dropdown!$C$3,'Referenzwertegeber VS'!L9/7),_xlfn.IFS($C$17=Dropdown!$C$2,'Referenzwertegeber VS'!L9/5,'Referenzwertegeber VS'!$C$17=Dropdown!$C$3,'Referenzwertegeber VS'!L9/7)),\"Angabe fehlt!\"))","v":"Angabe fehlt!"},{"$f":"+IFERROR(IF($B$7=Dropdown!$A$2,_xlfn.IFS($B$17=Dropdown!$C$2,'Referenzwertegeber VS'!M9/5,'Referenzwertegeber VS'!$B$17=Dropdown!$C$3,'Referenzwertegeber VS'!M9/7),_xlfn.IFS($C$17=Dropdown!$C$2,'Referenzwertegeber VS'!M9/5,'Referenzwertegeber VS'!$C$17=Dropdown!$C$3,'Referenzwertegeber VS'!M9/7)),\"Angabe fehlt!\")","v":"Angabe fehlt!"},{"$f":"+IFERROR(IF($B$7=Dropdown!$A$2,_xlfn.IFS($B$17=Dropdown!$C$2,'Referenzwertegeber VS'!N9/5,'Referenzwertegeber VS'!$B$17=Dropdown!$C$3,'Referenzwertegeber VS'!N9/7),_xlfn.IFS($C$17=Dropdown!$C$2,'Referenzwertegeber VS'!N9/5,'Referenzwertegeber VS'!$C$17=Dropdown!$C$3,'Referenzwertegeber VS'!N9/7)),\"Angabe fehlt!\")","v":"Angabe fehlt!"},{"$f":"+IFERROR(IF($B$7=Dropdown!$A$2,_xlfn.IFS($B$17=Dropdown!$C$2,'Referenzwertegeber VS'!O9/5,'Referenzwertegeber VS'!$B$17=Dropdown!$C$3,'Referenzwertegeber VS'!O9/7),_xlfn.IFS($C$17=Dropdown!$C$2,'Referenzwertegeber VS'!O9/5,'Referenzwertegeber VS'!$C$17=Dropdown!$C$3,'Referenzwertegeber VS'!O9/7)),\"Angabe fehlt!\")","v":"Angabe fehlt!"},{"$f":"+IFERROR(IF($B$7=Dropdown!$A$2,_xlfn.IFS($B$17=Dropdown!$C$2,'Referenzwertegeber VS'!P9/5,'Referenzwertegeber VS'!$B$17=Dropdown!$C$3,'Referenzwertegeber VS'!P9/7),_xlfn.IFS($C$17=Dropdown!$C$2,'Referenzwertegeber VS'!P9/5,'Referenzwertegeber VS'!$C$17=Dropdown!$C$3,'Referenzwertegeber VS'!P9/7)),\"Angabe fehlt!\")","v":"Angabe fehlt!"}]
["Maße des Bahnsteigs"]
["Bahnsteiglänge in [m]"]
["Bahnsteigbreite in [m]",null,null,null,null,null,null,"Auflistung der \"onTop\"-Sperrzeiten","Sperrzeit in [h]"," Sperrzeit \"im Schatten\" [%]"]
[null,null,null,null,null,null,null,"Sicherungsmaßnahmen",{"$f":"+IFERROR(_xlfn.IFS(B7=Dropdown!A2,'Leistungswerte Außenbahnsteig'!U25,'Referenzwertegeber VS'!C7=Dropdown!A3,'Leistungswerte Mittelbstg'!Y42),\"\")","v":""},0]
["Arbeitszeit",null,null,null,null,null,null,"Hilfsbrücke",{"$f":"+_xlfn.IFS(B7=Dropdown!A2,'Leistungswerte Außenbahnsteig'!U17,C7=Dropdown!A3,'Leistungswerte Mittelbstg'!Y32,'Referenzwertegeber VS'!B7=\"\",\"\")","v":""},0]
["Schicht pro Tag (Ziel: Zweischichtig, Schichtlänge 8h)",null,null,null,null,null,null,"Behelfsbahnsteig",{"$f":"+_xlfn.IFS(B7=Dropdown!A2,'Leistungswerte Außenbahnsteig'!U18+'Leistungswerte Außenbahnsteig'!U19,C7=Dropdown!A3,'Leistungswerte Mittelbstg'!Y33+'Leistungswerte Mittelbstg'!Y34,'Referenzwertegeber VS'!B7=\"\",\"\")","v":""},0]
["Anzahl Arbeitstage pro Woche",null,null,null,null,null,null,"Bahnsteigdach",{"$f":"+_xlfn.IFS(B7=Dropdown!A2,'Leistungswerte Außenbahnsteig'!U20,C7=Dropdown!A3,'Leistungswerte Mittelbstg'!Y35,'Referenzwertegeber VS'!B7=\"\",\"\")","v":""},0]
[null,null,null,null,null,null,null,"Fachdienste",{"$f":"+_xlfn.IFS(B7=Dropdown!A2,'Leistungswerte Außenbahnsteig'!U21,C7=Dropdown!A3,'Leistungswerte Mittelbstg'!Y36,'Referenzwertegeber VS'!B7=\"\",\"\")","v":""},0]
["Austattung der Verkehrsstation",null,null,null,null,null,null,"Aufzug",{"$f":"+_xlfn.IFS(B7=Dropdown!A2,'Leistungswerte Außenbahnsteig'!U22,C7=Dropdown!A3,'Leistungswerte Mittelbstg'!Y37,'Referenzwertegeber VS'!B7=\"\",\"\")","v":""},{"$f":"+_xlfn.IFS(AND(B12<=100,C12=\"\"),0%,AND(B12>100,C12=\"\"),70%,AND(B12=\"\",C12<=100),0%,AND(B12=\"\",C12>100),70%)","v":0}]
["Neubau Bahnsteigdach vorhanden, wenn ja Länge in [m]",null,null,null,null,null,null,"Rampe",{"$f":"+_xlfn.IFS(B7=Dropdown!A2,\"entfällt\",C7=Dropdown!A3,'Leistungswerte Mittelbstg'!Y38,'Referenzwertegeber VS'!B7=\"\",\"\")","v":""},{"$f":"IFERROR(+_xlfn.IFS(AND(B12<=100,C12=\"\",S4=0),0%,AND(B12>100,C12=\"\"),0%,AND(B12=\"\",C12<=100,S4=0),0%,AND(B12=\"\",C12>100,S4<>0),('Leistungswerte Mittelbstg'!B38-S4)/'Leistungswerte Mittelbstg'!B38,AND(B12=\"\",C12>100,S4=0),60%),0)","v":0}]
["Neubau Aufzug/Rampe",null,null,null,null,null,null,"Treppen",{"$f":"+_xlfn.IFS(B7=Dropdown!A2,'Leistungswerte Außenbahnsteig'!U23,C7=Dropdown!A3,'Leistungswerte Mittelbstg'!Y39,'Referenzwertegeber VS'!B7=\"\",\"\")","v":""},{"$f":"+_xlfn.IFS(AND(B12<=100,C12=\"\"),0%,AND(B12>100,C12=\"\"),70%,AND(B12=\"\",C12<=100),0%,AND(B12=\"\",C12>100),70%)","v":0}]
["Anzahl Aufzug/Rampe [Stück ]",null,null,null,null,null,null,"Personenunterführung - Anteil HB",{"$f":"+_xlfn.IFS(B7=Dropdown!A2,'Leistungswerte Außenbahnsteig'!U24,C7=Dropdown!A3,'Leistungswerte Mittelbstg'!Y40,'Referenzwertegeber VS'!B7=\"\",\"\")","v":""},0]
["Neubau Treppen",null,null,null,null,null,null,"Behelfsüberführung",{"$f":"IFERROR(_xlfn.IFS(B7=Dropdown!A2,\"entfällt\",C7=Dropdown!A3,+'Leistungswerte Mittelbstg'!Y41),\"\")","v":""},0]
["Anzahl Treppen [Stück]",null,null,null,null,null,null,"zusätzliche Maßnahmen",{"$f":"+IFERROR(_xlfn.IFS(B7=Dropdown!A2,'Leistungswerte Außenbahnsteig'!U26,'Referenzwertegeber VS'!C7=Dropdown!A3,'Leistungswerte Mittelbstg'!Y43),\"\")","v":""},0]
["Neubau Personenunterführung unter Hilfsbrücke"]
[]
["Örtliche Gegebenheiten"]
["Baugrund"]
["Dammlage? Stützwand erforderlich?"]
["Logistik"]
[]
["Provisorische Maßnahmen"]
["Behelfsbahnsteig erforderlich, wenn ja Länge in [m]"]
["Behelfsüberführung (vormontiert)"]
["Anzahl der zusätzlich erforderlichen Hilfsbrücken [Stück] außerhalb der PU"]
[]
["Sonstige Arbeiten"]
["erforderlicher Aufwand der Fachdienste"]
[]
["Reisendenverkehr"]
["Arbeiten nur in Nachtschichten (aufgr. Reisendenverkehr)"]
["Reduzierte Bahnsteiglänge\n(Halbe Bahnsteiglänge für Reisendenverkehr vorhanden,\n Arbeiten nur in Nachtschichten)"]
["Längsteilung (nur eine Kante nutzbar)"]
[]
["Zusätzliche Maßnahmen - Bezeichnung"]

{"sheet":"Leistungswerte Außenbahnsteig","index":2,"n_rows":26,"n_cols":21,"rows_kept":26,"cut":false,"hidden":true,"merged":[]}
[null,null,null,"Bahnsteigbreite","Faktor","Baugrund","Faktor","Stützwand","Faktor","Reisendenverkehr","Faktor","Logistik _Abstg","Faktor","Bauweise","Faktor",null,"Reduktionsfaktor"]
[null,null,null,"2,75 m",1,"leicht",1.3,"ja",0.8,"ja Rückbau Kante",0.9,"Standard (feldseitig)",1,"konventionel",1,null,"Parallele Arbeiten"]
[null,null,null,"> 2,75 m",0.9,"mittel",1,"nein",1,"ja Verfüllen kabel",0.5,"schwierig (gleisgebunden)",0.9,"modular",{"$f":"1/0.65","v":1.5384615384615383}]
[null,null,null,null,null,"schwer",0.75,null,null,"nein",1,"sehr schwierig (ESTW, sehr lange Wege, etc.)",0.7]
[]
[null,"Standardfall",null,"Faktor Bahnsteigbreite",null,"Baugrund",null,"Stützwand",null,"Reisendenverkehr",null,"Logistik _Abstg",null,"Bauweise",null,null,null,null,"Mit Einflussfaktoren noch Auswahl im Wertegeber"]
["Art der Arbeit","[m/h]","[h/m]","[m/h]",null,"[m/h]",null,"[m/h]",null,"[m/h]",null,"[m/h]",null,"[m/h]",null,null,null,null,"[m/h]","[h/m]"]
["Rückbau",3,{"$f":"1/B8","v":0.33333333333333331},{"$f":"+IF('Referenzwertegeber VS'!$B$13=Dropdown!$D$3,$E$3,1)","v":1},null,1,null,1,null,{"$f":"+IF('Referenzwertegeber VS'!$B$41=Dropdown!$H$2,$K$2,$K$4)","v":1},null,{"$f":"+IFERROR(_xlfn.IFS('Referenzwertegeber VS'!$B$30=Dropdown!$J$2,'Leistungswerte Außenbahnsteig'!$M$2,'Referenzwertegeber VS'!$B$30=Dropdown!$J$3,'Leistungswerte Außenbahnsteig'!$M$3,'Referenzwertegeber VS'!$B$30=Dropdown!$J$4,'Leistungswerte Außenbahnsteig'!$M$4),1)","v":1},null,{"$f":"IFERROR(+_xlfn.IFS('Referenzwertegeber VS'!$B$8=Dropdown!$P$2,'Leistungswerte Außenbahnsteig'!$O$2,'Referenzwertegeber VS'!$B$8=Dropdown!$P$3,'Leistungswerte Außenbahnsteig'!$O$3),$O$2)","v":1},null,null,1,null,{"$f":"+B8*D8*F8*H8*J8*L8*N8*Q8","v":3},{"$f":"1/S8","v":0.33333333333333331}]
["Fundament + Kante setzen",2.25,{"$f":"1/B9","v":0.44444444444444442},1,null,{"$f":"+IFERROR(_xlfn.IFS('Referenzwertegeber VS'!$B$28=Dropdown!$E$2,$G$2,'Referenzwertegeber VS'!$B$28=Dropdown!$E$4,$G$4),$G$3)","v":1},null,{"$f":"+IF('Referenzwertegeber VS'!$B$29=Dropdown!$F$2,$I$2,$I$3)","v":1},null,{"$f":"+IF('Referenzwertegeber VS'!$B$41=Dropdown!$H$2,$K$2,$K$4)","v":1},null,{"$f":"+IFERROR(_xlfn.IFS('Referenzwertegeber VS'!$B$30=Dropdown!$J$2,'Leistungswerte Außenbahnsteig'!$M$2,'Referenzwertegeber VS'!$B$30=Dropdown!$J$3,'Leistungswerte Außenbahnsteig'!$M$3,'Referenzwertegeber VS'!$B$30=Dropdown!$J$4,'Leistungswerte Außenbahnsteig'!$M$4),1)","v":1},null,{"$f":"IFERROR(+_xlfn.IFS('Referenzwertegeber VS'!$B$8=Dropdown!$P$2,'Leistungswerte Außenbahnsteig'!$O$2,'Referenzwertegeber VS'!$B$8=Dropdown!$P$3,'Leistungswerte Außenbahnsteig'!$O$3),$O$2)","v":1},null,null,1,null,{"$f":"+B9*D9*F9*H9*J9*L9*N9*Q9","v":2.25},{"$f":"1/S9","v":0.44444444444444442}]
["Kabeltiefbau und Entwässerung",15.63,{"$f":"1/B10","v":6.3979526551503518E-2},1,null,1,null,1,null,{"$f":"+IF('Referenzwertegeber VS'!$B$41=Dropdown!$H$2,$K$3,$K$4)","v":1},null,1,null,{"$f":"IFERROR(+_xlfn.IFS('Referenzwertegeber VS'!$B$8=Dropdown!$P$2,'Leistungswerte Außenbahnsteig'!$O$2,'Referenzwertegeber VS'!$B$8=Dropdown!$P$3,'Leistungswerte Außenbahnsteig'!$O$3),$O$2)","v":1},null,null,1,null,15.63,6.3979526551503518E-2]
["Verfüllen",4,0.25,{"$f":"+IF('Referenzwertegeber VS'!$B$13=Dropdown!$D$3,$E$3,1)","v":1},null,{"$f":"+IFERROR(_xlfn.IFS('Referenzwertegeber VS'!$B$28=Dropdown!$E$2,$G$2,'Referenzwertegeber VS'!$B$28=Dropdown!$E$4,$G$4),$G$3)","v":1},null,{"$f":"+IF('Referenzwertegeber VS'!$B$29=Dropdown!$F$2,$I$2,$I$3)","v":1},null,{"$f":"+IF('Referenzwertegeber VS'!$B$41=Dropdown!$H$2,$K$3,$K$4)","v":1},null,{"$f":"+IFERROR(_xlfn.IFS('Referenzwertegeber VS'!$B$30=Dropdown!$J$2,'Leistungswerte Außenbahnsteig'!$M$2,'Referenzwertegeber VS'!$B$30=Dropdown!$J$3,'Leistungswerte Außenbahnsteig'!$M$3,'Referenzwertegeber VS'!$B$30=Dropdown!$J$4,'Leistungswerte Außenbahnsteig'!$M$4),1)","v":1},null,{"$f":"IFERROR(+_xlfn.IFS('Referenzwertegeber VS'!$B$8=Dropdown!$P$2,'Leistungswerte Außenbahnsteig'!$O$2,'Referenzwertegeber VS'!$B$8=Dropdown!$P$3,'Leistungswerte Außenbahnsteig'!$O$3),$O$2)","v":1},null,null,1,null,4,0.25]
["Pflastern",3,0.33333333333333331,{"$f":"+IF('Referenzwertegeber VS'!$B$13=Dropdown!$D$3,$E$3,1)","v":1},null,1,null,1,null,1,null,1,null,{"$f":"IFERROR(+_xlfn.IFS('Referenzwertegeber VS'!$B$8=Dropdown!$P$2,'Leistungswerte Außenbahnsteig'!$O$2,'Referenzwertegeber VS'!$B$8=Dropdown!$P$3,'Leistungswerte Außenbahnsteig'!$O$3),$O$2)","v":1},null,null,1,null,3,0.33333333333333331]
["Beleuchtung",20,0.05,1,null,1,null,1,null,1,null,1,null,{"$f":"IFERROR(+_xlfn.IFS('Referenzwertegeber VS'!$B$8=Dropdown!$P$2,'Leistungswerte Außenbahnsteig'!$O$2,'Referenzwertegeber VS'!$B$8=Dropdown!$P$3,'Leistungswerte Außenbahnsteig'!$O$3),$O$2)","v":1},null,null,1,null,20,0]
[]
["Leistungswerte für Einflussfaktoren",null,null,null,null,null,null,null,null,null,null,null,null,null,null,null,null,null,null,"Sperrzeit on Top"]
[null,null,null,null,null,null,null,null,null,null,null,null,null,null,null,null,null,null,"Summe",{"$f":"SUM(T17:T26)","v":72}]
["Hilfsbrücke",62,"h",null,null,null,null,null,null,null,null,null,null,null,null,null,null,null,null,{"$f":"+B17*'Referenzwertegeber VS'!B35","v":0},{"$f":"+T17","v":0}]
["Behelfsbahsnteig-Errichtung",0.5,"h/m",null,null,null,null,null,null,null,null,null,null,null,null,null,null,null,null,{"$f":"+B18*'Referenzwertegeber VS'!B33","v":0},{"$f":"+T18","v":0}]
["Behelfsbahsnteig-Rückbau",{"$f":"1/4","v":0.25},"h/m",null,null,null,null,null,null,null,null,null,null,null,null,null,null,null,null,{"$f":"+'Referenzwertegeber VS'!B33*'Leistungswerte Außenbahnsteig'!B19","v":0},{"$f":"+T19","v":0}]
["Bahnsteigdach",1,"h/m",null,null,null,null,null,null,null,null,null,null,null,null,null,null,null,null,{"$f":"+B20*'Referenzwertegeber VS'!B20","v":0},{"$f":"+T20","v":0}]
["Fachdienste",80,"h",null,null,null,null,null,null,null,null,null,null,null,null,null,null,null,null,{"$f":"+IF('Referenzwertegeber VS'!B38=Dropdown!G3,'Leistungswerte Außenbahnsteig'!B21,40)","v":40},{"$f":"+T21","v":40}]
["Aufzug",120,"h",null,null,null,null,null,null,null,null,null,null,null,null,null,null,null,null,{"$f":"+IF('Referenzwertegeber VS'!B21=Dropdown!L3,'Leistungswerte Außenbahnsteig'!B22*'Referenzwertegeber VS'!B22*(1-'Referenzwertegeber VS'!J19),0)","v":0},{"$f":"+IF('Referenzwertegeber VS'!B21=Dropdown!L3,'Leistungswerte Außenbahnsteig'!B22*'Referenzwertegeber VS'!B22,0)","v":0}]
["Treppen",120,"h",null,null,null,null,null,null,null,null,null,null,null,null,null,null,null,null,{"$f":"+IF('Referenzwertegeber VS'!B23=Dropdown!M2,'Leistungswerte Außenbahnsteig'!B23*'Referenzwertegeber VS'!B24*(1-'Referenzwertegeber VS'!J21),0)","v":0},{"$f":"+IF('Referenzwertegeber VS'!B23=Dropdown!M2,'Leistungswerte Außenbahnsteig'!B23*'Referenzwertegeber VS'!B24,0)","v":0}]
["PU",124,"h",null,null,null,null,null,null,null,null,null,null,null,null,null,null,null,null,{"$f":"+IF('Referenzwertegeber VS'!B25=Dropdown!N2,'Leistungswerte Außenbahnsteig'!B24,0)","v":0},{"$f":"+T24","v":0}]
["Sicherung",32,"h",null,null,null,null,null,null,null,null,null,null,null,null,null,null,null,null,{"$f":"+B25","v":32},{"$f":"+T25","v":32}]
["Anteil DB Netz AG",null,null,null,null,null,null,null,null,null,null,null,null,null,null,null,null,null,null,{"$f":"SUM('Referenzwertegeber VS'!B46:B54)","v":0},{"$f":"+T26","v":0}]

{"sheet":"Leistungswerte Mittelbstg","index":3,"n_rows":43,"n_cols":25,"rows_kept":43,"cut":false,"hidden":true,"merged":[]}
["Bahnsteiglänge in [m]",{"$f":"+'Referenzwertegeber VS'!C12","v":0}]
[]
["Sperrzeit"]
["Gesamtdauer in [h]",{"$f":"SUM(D22:D28)","v":0},null,{"$f":"+B1*(2*X22+2*X23+X24+X25+X26+X27+X28)","v":0},null,null,null,null,null,null,null,null,null,null,null,null,null,null,null,null,200,{"$f":"+(X22+X23+X24+X25+X26+X27+X28)*U4+200*(X22+X23)","v":731.556743909685}]
["Gesamtdauer in [Tagen]",{"$f":"+B4/24","v":0}]
["Gesamtdauer in [Wochen]",{"$f":"+B5/7","v":0}]
["Dauer in Einschichtbetrieb(8 Stunden) 5 Tage Woche [Tagen]",{"$f":"+B4/8","v":0}]
["Dauer in Einschichtbetrieb(8 Stunden) 5 Tage Woche [Wochen]",{"$f":"+B7/5","v":0}]
["Dauer in Zweischichtbetrieb(jeweils 8 Stunden) 5 Tage Woche [Wochen]",{"$f":"+B4/16/5","v":0}]
[]
[]
[]
[]
[null,null,null,null,null,null,"Bahnsteigbreite","Faktor","Baugrund","Faktor","Längsteilung","Faktor","Reisendenverkehr","Faktor","Logistik_Mbstg","Faktor","Bauweise","Faktor",null,"Reduktionsfaktor"]
[null,null,null,null,null,null,"3,30 m - 5,49 m",1.3,"leicht",1.3,"ja",0.8,"ja Rückbau, kante",0.9,"Standard (gleisgebunden, beim Verfüllen mit Selbstentladewagen)",1,"konventionel",1,null,"Parallele Arbeiten"]
[null,null,null,null,null,null,"5,50 m",1,"mittel",1,"nein",1,"ja Verfüllen Kabel",0.5,"schwierig (LST Anpassung, Baustellenzufahrt über Gleise (höhengleich))",0.9,"modular",{"$f":"1/0.75","v":1.3333333333333333}]
[null,null,null,null,null,null,">5,50 m",0.9,"schwer",0.75,null,null,"nein",1,"sehr schwierig (ESTW, sehr lange Wege, etc.)",0.7]
[]
[]
[null,null,null,null,null,null,"Faktor Bahnsteigbreite",null,"Baugrund",null,"Längsteilung",null,"Reisendenverkehr",null,"Logistik_Mbstg",null,"Bauweise",null,null,null,null,null,"Mit Einflussfaktoren noch Auswahl im Wertegeber"]
["Art der Arbeit","[m/h]","[h/m]","Dauer in [h] pro xxx m",null,null,"[m/h]",null,"[m/h]",null,"[m/h]",null,"[m/h]",null,"[m/h]",null,"[m/h]",null,null,null,null,null,"[m/h]","[h/m]"]
["Rückbau",2.25,{"$f":"1/B22","v":0.44444444444444442},{"$f":"+$B$1*C22*2","v":0},"mit Faktor 2",null,{"$f":"+IFERROR(_xlfn.IFS('Referenzwertegeber VS'!$C$13=Dropdown!$D$11,'Leistungswerte Mittelbstg'!$H$15,'Referenzwertegeber VS'!$C$13=Dropdown!$D$12,'Leistungswerte Außenbahnsteig'!$G$3,'Referenzwertegeber VS'!$C$13=Dropdown!$D$13,'Leistungswerte Außenbahnsteig'!$G$4),1)","v":1},null,1,null,1,null,{"$f":"+IF('Referenzwertegeber VS'!$C$41=Dropdown!$H$2,$N$15,$N$17)","v":1},null,{"$f":"+IFERROR(_xlfn.IFS('Referenzwertegeber VS'!$C$30=Dropdown!$K$2,'Leistungswerte Mittelbstg'!$P$15,'Referenzwertegeber VS'!$C$30=Dropdown!$K$3,'Leistungswerte Mittelbstg'!$P$16,'Referenzwertegeber VS'!$C$30=Dropdown!$K$4,'Leistungswerte Mittelbstg'!$P$17),1)","v":1},null,{"$f":"IFERROR(+_xlfn.IFS('Referenzwertegeber VS'!$C$8=Dropdown!$P$2,'Leistungswerte Mittelbstg'!$R$15,'Referenzwertegeber VS'!$C$8=Dropdown!$P$3,'Leistungswerte Mittelbstg'!$R$16),$R$15)","v":1},null,null,1,null,null,{"$f":"+B22*G22*I22*K22*M22*O22*Q22*T22","v":2.25},{"$f":"1/W22","v":0.44444444444444442}]
["Fundament + Kante setzen",1.7,{"$f":"1/B23","v":0.58823529411764708},{"$f":"+$B$1*C23*2","v":0},"mit Faktor 2",null,1,null,{"$f":"+IFERROR(_xlfn.IFS('Referenzwertegeber VS'!$C$28=Dropdown!$E$2,$J$15,'Referenzwertegeber VS'!$C$28=Dropdown!$E$4,$J$17),$J$16)","v":1},null,1,null,{"$f":"+IF('Referenzwertegeber VS'!$C$41=Dropdown!$H$2,$N$15,$N$17)","v":1},null,{"$f":"+IFERROR(_xlfn.IFS('Referenzwertegeber VS'!$C$30=Dropdown!$K$2,'Leistungswerte Mittelbstg'!$P$15,'Referenzwertegeber VS'!$C$30=Dropdown!$K$3,'Leistungswerte Mittelbstg'!$P$16,'Referenzwertegeber VS'!$C$30=Dropdown!$K$4,'Leistungswerte Mittelbstg'!$P$17),1)","v":1},null,{"$f":"IFERROR(+_xlfn.IFS('Referenzwertegeber VS'!$C$8=Dropdown!$P$2,'Leistungswerte Mittelbstg'!$R$15,'Referenzwertegeber VS'!$C$8=Dropdown!$P$3,'Leistungswerte Mittelbstg'!$R$16),$R$15)","v":1},null,null,1,null,null,{"$f":"+B23*G23*I23*K23*M23*O23*Q23*T23","v":1.7},{"$f":"1/W23","v":0.58823529411764708}]
["Kabeltiefbau ",12,{"$f":"1/B24","v":8.3333333333333329E-2},{"$f":"+$B$1*C24","v":0},null,null,1,null,1,null,1,null,{"$f":"+IF('Referenzwertegeber VS'!$C$41=Dropdown!$H$2,$N$16,$N$17)","v":1},null,1,null,{"$f":"IFERROR(+_xlfn.IFS('Referenzwertegeber VS'!$C$8=Dropdown!$P$2,'Leistungswerte Mittelbstg'!$R$15,'Referenzwertegeber VS'!$C$8=Dropdown!$P$3,'Leistungswerte Mittelbstg'!$R$16),$R$15)","v":1},null,null,1,null,null,12,8.3333333333333329E-2]
["Entwässerung",5,0.2,0,null,null,1,null,1,null,1,null,{"$f":"+IF('Referenzwertegeber VS'!$C$41=Dropdown!$H$2,$N$16,$N$17)","v":1},null,1,null,{"$f":"IFERROR(+_xlfn.IFS('Referenzwertegeber VS'!$C$8=Dropdown!$P$2,'Leistungswerte Mittelbstg'!$R$15,'Referenzwertegeber VS'!$C$8=Dropdown!$P$3,'Leistungswerte Mittelbstg'!$R$16),$R$15)","v":1},null,null,1,null,null,5,0.2]
["Verfüllen",3,0.33333333333333331,0,null,null,{"$f":"+IFERROR(_xlfn.IFS('Referenzwertegeber VS'!$C$13=Dropdown!$D$11,'Leistungswerte Mittelbstg'!$H$15,'Referenzwertegeber VS'!$C$13=Dropdown!$D$12,'Leistungswerte Außenbahnsteig'!$G$3,'Referenzwertegeber VS'!$C$13=Dropdown!$D$13,'Leistungswerte Außenbahnsteig'!$G$4),1)","v":1},null,{"$f":"+IFERROR(_xlfn.IFS('Referenzwertegeber VS'!$C$28=Dropdown!$E$2,$J$15,'Referenzwertegeber VS'!$C$28=Dropdown!$E$4,$J$17),$J$16)","v":1},null,{"$f":"+IF('Referenzwertegeber VS'!$C$43=Dropdown!$I$11,'Leistungswerte Mittelbstg'!$L$15,'Leistungswerte Mittelbstg'!$L$16)","v":1},null,{"$f":"+IF('Referenzwertegeber VS'!$C$41=Dropdown!$H$2,$N$16,$N$17)","v":1},null,{"$f":"+IFERROR(_xlfn.IFS('Referenzwertegeber VS'!$C$30=Dropdown!$K$2,'Leistungswerte Mittelbstg'!$P$15,'Referenzwertegeber VS'!$C$30=Dropdown!$K$3,'Leistungswerte Mittelbstg'!$P$16,'Referenzwertegeber VS'!$C$30=Dropdown!$K$4,'Leistungswerte Mittelbstg'!$P$17),1)","v":1},null,{"$f":"IFERROR(+_xlfn.IFS('Referenzwertegeber VS'!$C$8=Dropdown!$P$2,'Leistungswerte Mittelbstg'!$R$15,'Referenzwertegeber VS'!$C$8=Dropdown!$P$3,'Leistungswerte Mittelbstg'!$R$16),$R$15)","v":1},null,null,1,null,null,3,0.33333333333333331]
["Pflastern",1.1000000000000001,0.90909090909090906,0,null,null,{"$f":"+IFERROR(_xlfn.IFS('Referenzwertegeber VS'!$C$13=Dropdown!$D$11,'Leistungswerte Mittelbstg'!$H$15,'Referenzwertegeber VS'!$C$13=Dropdown!$D$12,'Leistungswerte Außenbahnsteig'!$G$3,'Referenzwertegeber VS'!$C$13=Dropdown!$D$13,'Leistungswerte Außenbahnsteig'!$G$4),1)","v":1},null,1,null,{"$f":"+IF('Referenzwertegeber VS'!$C$43=Dropdown!$I$11,'Leistungswerte Mittelbstg'!$L$15,'Leistungswerte Mittelbstg'!$L$16)","v":1},null,1,null,1,null,{"$f":"IFERROR(+_xlfn.IFS('Referenzwertegeber VS'!$C$8=Dropdown!$P$2,'Leistungswerte Mittelbstg'!$R$15,'Referenzwertegeber VS'!$C$8=Dropdown!$P$3,'Leistungswerte Mittelbstg'!$R$16),$R$15)","v":1},null,null,1,null,null,1.1000000000000001,0.90909090909090906]
["Beleuchtung",15,6.6666666666666666E-2,0,null,null,1,null,1,null,1,null,1,null,1,null,{"$f":"IFERROR(+_xlfn.IFS('Referenzwertegeber VS'!$C$8=Dropdown!$P$2,'Leistungswerte Mittelbstg'!$R$15,'Referenzwertegeber VS'!$C$8=Dropdown!$P$3,'Leistungswerte Mittelbstg'!$R$16),$R$15)","v":1},null,null,1,null,null,15,6.6666666666666666E-2]
[]
["Leistungswerte für Einflussfaktoren",null,null,null,null,null,null,null,null,null,null,null,null,null,null,null,null,null,null,null,null,null,null,"Sperrzeit onTop"]
[null,null,null,null,null,null,null,null,null,null,null,null,null,null,null,null,null,null,null,null,null,null,"Summe",{"$f":"SUM(X32:X43)","v":72}]
["Hilfsbrücke",62,"h",null,null,null,null,null,null,null,null,null,null,null,null,null,null,null,null,null,null,null,null,{"$f":"+B32*'Referenzwertegeber VS'!C35","v":0},{"$f":"+X32","v":0}]
["Behelfsbahnsteig-Errichtung",0.5,"h/m",null,null,null,null,null,null,null,null,null,null,null,null,null,null,null,null,null,null,null,null,{"$f":"+B33*'Referenzwertegeber VS'!C33","v":0},{"$f":"+X33","v":0}]
["Behelfsbahnsteig-Rückbau",{"$f":"1/4","v":0.25},"h/m",null,null,null,null,null,null,null,null,null,null,null,null,null,null,null,null,null,null,null,null,{"$f":"+'Referenzwertegeber VS'!C33*'Leistungswerte Mittelbstg'!B34","v":0},{"$f":"+X34","v":0}]
["Bahnsteigdach",{"$f":"1/0.75","v":1.3333333333333333},"h/m",null,null,null,null,null,null,null,null,null,null,null,null,null,null,null,null,null,null,null,null,{"$f":"+B35*'Referenzwertegeber VS'!C20","v":0},{"$f":"+X35","v":0}]
["Fachdienste",80,"h",null,null,null,null,null,null,null,null,null,null,null,null,null,null,null,null,null,null,null,null,{"$f":"+IF('Referenzwertegeber VS'!C38=Dropdown!G3,'Leistungswerte Mittelbstg'!B36,40)","v":40},{"$f":"+X36","v":40}]
["Aufzug",120,"h",null,null,null,null,null,null,null,null,null,null,null,null,null,null,null,null,null,null,null,null,{"$f":"+IF('Referenzwertegeber VS'!C21=Dropdown!L3,'Leistungswerte Mittelbstg'!B37*'Referenzwertegeber VS'!C22*(1-'Referenzwertegeber VS'!J19),0)","v":0},{"$f":"+IF('Referenzwertegeber VS'!C21=Dropdown!L3,'Leistungswerte Mittelbstg'!B37*'Referenzwertegeber VS'!C22,0)","v":0}]
["Rampe",700,"h",null,null,null,null,null,null,null,null,null,null,null,null,null,null,null,null,null,null,null,null,{"$f":"+IF('Referenzwertegeber VS'!C21=Dropdown!L4,'Leistungswerte Mittelbstg'!B38*'Referenzwertegeber VS'!C22*(1-'Referenzwertegeber VS'!J20),0)","v":0},{"$f":"+IF('Referenzwertegeber VS'!C21=Dropdown!L4,'Leistungswerte Mittelbstg'!B38*'Referenzwertegeber VS'!C22,0)","v":0}]
["Treppe",120,"h",null,null,null,null,null,null,null,null,null,null,null,null,null,null,null,null,null,null,null,null,{"$f":"+IF('Referenzwertegeber VS'!C23=Dropdown!M2,'Leistungswerte Außenbahnsteig'!B23*'Referenzwertegeber VS'!C24*(1-'Referenzwertegeber VS'!J21),0)","v":0},{"$f":"+IF('Referenzwertegeber VS'!C23=Dropdown!M2,'Leistungswerte Außenbahnsteig'!B23*'Referenzwertegeber VS'!C24,0)","v":0}]
["PU",124,"h",null,null,null,null,null,null,null,null,null,null,null,null,null,null,null,null,null,null,null,null,{"$f":"+IF('Referenzwertegeber VS'!C25=Dropdown!N2,'Leistungswerte Mittelbstg'!B40,0)","v":0},{"$f":"+X40","v":0}]
["prov Behelfsüberführung",8,"h",null,null,null,null,null,null,null,null,null,null,null,null,null,null,null,null,null,null,null,null,{"$f":"+IF('Referenzwertegeber VS'!C34=Dropdown!O2,'Leistungswerte Mittelbstg'!B41,0)","v":0},{"$f":"+X41","v":0}]
["Sicherung",32,"h",null,null,null,null,null,null,null,null,null,null,null,null,null,null,null,null,null,null,null,null,{"$f":"+B42","v":32},{"$f":"+X42","v":32}]
["Anteil DB Netz",null,null,null,null,null,null,null,null,null,null,null,null,null,null,null,null,null,null,null,null,null,null,{"$f":"SUM('Referenzwertegeber VS'!C46:C54)","v":0},{"$f":"+X43","v":0}]

{"sheet":"Dropdown","index":4,"n_rows":16,"n_cols":17,"rows_kept":16,"cut":false,"hidden":true,"merged":[]}
["Art","Schichtigkeit","Woche","Bahnsteigbreite","Baugrund","Stützwand","Fachdienste","Reisendenverkehr","Querteilung","Logistik _Abstg","Logistik_Mbstg","Neubau Ing","Treppen","PU","Behelfsüberführung","Bauweise","Art"]
["Außenbahnsteig","Einschichtig (je zwei Kolonnen)","5-Tage Woche","≤ 2,75 m","leicht","ja","Standard","ja","ja","Standard (feldseitig)","Standard (gleisgebunden, beim Verfüllen mit Selbstentladewagen)","nein","ja","ja","ja","konventionell","Neubau"]
["Mittelbahnsteig","Zweischichtig (je zwei Kolonnen)","7-Tage Woche","> 2,75 m","mittel","nein","erhöhter Bedarf","nein","nein","schwierig (gleisgebunden)","schwierig (LST Anpassung, Baustellenzufahrt über Gleise (höhengleich))","Aufzug","nein","nein","nein","modular","Erneuerung"]
[null,"Dreischichtig (je zwei Kolonnen)",null,null,"schwierig",null,null,null,null,"sehr schwierig (z. B.: sehr lange Wege, ESTW, etc.)","sehr schwierig (z. B.: sehr lange Wege, ESTW, etc.)","Rampe"]
[]
[]
[]
[]
["Nur für Mittelbahnsteig"]
[null,null,null,"Bahnsteigbreite",null,null,null,null,"Längsteilung"]
[null,null,null,"3,30 m - 5,30 m",null,null,null,null,"ja"]
[null,null,null,"5,30 m - 5,70 m",null,null,null,null,"nein"]
[null,null,null,"> 5,70 m"]
[]
[]
["Begründungsfeld"]